Workbook

Sheet Index
C1: GAAR 2020-25 JGN - Rate of Return Model | K1: Overall Check: | L1: ='Check|List'!$V$1 -> OK
C2: Index
B5: Copyright Jemena Limited. All rights reserved. Jemena is not liable for any loss caused by reliance on this document.
B7: Model Index
C9: Sheet Name | D9: Sheet Description
C10: Index | D10: Model index with hyperlinks
C11: Input|Rate of return | D11: Data for forecast inflation and bond yield
C12: Calc|Placeholder RfR | D12: Demonstrates the methodology for calculating the risk-free rate, using placeholder inputs
C13: Calc|Rate of return | D13: Estimates the rate of return and forecast inflation expectation
C14: Output|Rate of return | D14: Summary of the rate of return and forecast inflation expectation
C15: Lookup|Tables | D15: Source for named ranges used for units, basis, etc
C16: Check|List | D16: Check for errors
B20: End

Sheet Input|Rate of return
C1: =Index!$C$1 -> GAAR 2020-25 JGN - Rate of Return Model | F1: Back to Index | H1: Key: | I1: Input (hard code) | J1: External Link | K1: Internal Link | L1: Drop down Selection | M1: Calculation | N1: Unique calculation | O1: Empty cell | R1: Section Check: | S1: =IF(COUNTA($A$8:$A$85)=COUNTIF($A$8:$A$85,"OK"),"OK","Check") -> OK | U1: Overall Check: | V1: ='Check|List'!$V$1 -> OK
C2: =RIGHT(CELL("filename",C1),LEN(CELL("filename",C1))-FIND("]",CELL("filename",C1))) -> Input|Rate of return
I3: Prior | N3: Current Regulatory Period | S3: Next Regulatory Period
D4: Source | E4: Unit | F4: Basis | H4: =+I4-1 -> 2015 | I4: =+J4-1 -> 2016 | J4: =+K4-1 -> 2017 | K4: =+L4-1 -> 2018 | L4: =+M4-1 -> 2019 | M4: 2020 | N4: =+M4+1 -> 2021 | O4: =+N4+1 -> 2022 | P4: 2023 | Q4: 2024 | R4: 2025 | S4: 2026 | T4: 2027 | U4: 2028 | V4: 2029 | W4: 2030
B6: Copyright Jemena Limited. All rights reserved. Jemena is not liable for any loss caused by reliance on this document.
B8: Input | Inflation
C10: Opex Inflation (year to Jun, no lag) | D10: Source | E10: Unit | F10: Basis | H10: ="RY"&RIGHT(H$4,2) -> RY15 | I10: RY16 | J10: RY17 | K10: RY18 | L10: RY19 | M10: RY20 | N10: RY21 | O10: RY22 | P10: RY23 | Q10: RY24 | R10: RY25
C12: Actual inflation | D12: ABS | E12: Per cent | F12: n/a | I12: 0.01023255814 | J12: 0.01933701657 | K12: 0.02077687444 | L12: 0.01592920354 | M12: -0.003484320557 | N12: 0.03846153846 | O12: 0.06144781145 | P12: 0.06026962728
C13: Forecast inflation | D13: Placeholder | E13: Per cent | F13: n/a | Q13: 0.033 | R13: 0.031
A15: =IF(SUM(M15:AB15)=0,"Ok","Check") -> Ok | C15: Check: Only one active input per period | I15: =+IF(OR(COUNTBLANK(I12:I13)=2,COUNTBLANK(I12:I13)=1),0,1) -> 0 | J15: 0 | K15: 0 | L15: 0 | M15: 0 | N15: 0 | O15: 0 | P15: 0 | Q15: 0 | R15: 0
C17: Capex Inflation (year to Dec, no lag) | D17: Source | E17: Unit | F17: Basis | H17: ="RY"&RIGHT(H$4,2) -> RY15 | I17: RY16 | J17: RY17 | K17: RY18 | L17: RY19 | M17: RY20 | N17: RY21 | O17: RY22 | P17: RY23 | Q17: RY24 | R17: RY25
C19: Actual inflation | D19: ABS | E19: Per cent | F19: n/a | H19: 0.01717557252 | I19: 0.01688555347 | J19: 0.0147601476 | K19: 0.01909090909 | L19: 0.0178412132 | M19: 0.01840490798 | N19: 0.008605851979 | O19: 0.03498293515 | P19: 0.07831821929 | Q19: 0.04051987768
C20: Forecast inflation (Jun end from RY26) | D20: Placeholder | E20: Per cent | F20: n/a | R20: 0.032
A22: =IF(SUM(M22:AB22)=0,"Ok","Check") -> Ok | C22: Check: Only one active input per period | H22: =+IF(OR(COUNTBLANK(H19:H20)=2,COUNTBLANK(H19:H20)=1),0,1) -> 0 | I22: 0 | J22: 0 | K22: 0 | L22: 0 | M22: 0 | N22: 0 | O22: 0 | P22: 0 | Q22: 0 | R22: 0
C24: PTRM Forecast Inflation (year to June, no lag) | D24: Source | E24: Unit | F24: Basis | S24: ="RY"&RIGHT(S$4,2) -> RY26 | T24: ="RY"&RIGHT(T$4,2) -> RY27 | U24: ="RY"&RIGHT(U$4,2) -> RY28 | V24: ="RY"&RIGHT(V$4,2) -> RY29 | W24: ="RY"&RIGHT(W$4,2) -> RY30
C26: Forecast inflation (Jun end from RY26) | D26: RBA | E26: Per cent | F26: n/a | S26: 0.0315 | T26: 0.029 | U26: =T26+(($W26-T26)/(5-COUNTA($S26:T26))) -> 0.02766666667 | V26: =U26+(($W26-U26)/(5-COUNTA($S26:U26))) -> 0.02633333333 | W26: =+'[1]PTRM input'!$K$373 -> 0.025
C28: Source (actuals): ABS, all groups CPI inflation series A2325846C, weighted average for the eight capital cities.
C29: Source (forecasts): Placeholder
B31: Input | Placeholder risk-free rate
C33: Item | D33: Source | E33: Unit | F33: Basis | J33: Parameter
C35: Placeholder risk-free rate | D35: Placeholder | E35: Per cent | F35: n/a | J35: 0.0318 | K35: <- Placeholder value to be updated
B37: Input | Annual return on debt observations
C39: Yields by date (annualised) | D39: Source | E39: Unit | F39: Basis | J39: Parameter
C41: Return on debt observations
A42: =IF(OR(ISERROR(J42),ISNUMBER(J42)),"Ok","Check") -> Ok | C42: 2016 | D42: AER | E42: Per cent | F42: Nominal | J42: 0.04273562483
A43: =IF(OR(ISERROR(J43),ISNUMBER(J43)),"Ok","Check") -> Ok | C43: =+C42+1 -> 2017 | D43: AER | E43: Per cent | F43: Nominal | J43: 0.05422642326
A44: =IF(OR(ISERROR(J44),ISNUMBER(J44)),"Ok","Check") -> Ok | C44: =+C43+1 -> 2018 | D44: AER | E44: Per cent | F44: Nominal | J44: 0.0506870619
A45: =IF(OR(ISERROR(J45),ISNUMBER(J45)),"Ok","Check") -> Ok | C45: =+C44+1 -> 2019 | D45: AER | E45: Per cent | F45: Nominal | J45: 0.04573396235
A46: =IF(OR(ISERROR(J46),ISNUMBER(J46)),"Ok","Check") -> Ok | C46: =+C45+1 -> 2020 | D46: AER | E46: Per cent | F46: Nominal | J46: 0.04520098528
A47: =IF(OR(ISERROR(J47),ISNUMBER(J47)),"Ok","Check") -> Ok | C47: =TRANSPOSE(N4:W4) -> 2021 | D47: AER | E47: Per cent | F47: Nominal | J47: 0.02561120428
A48: Ok | C48: 2022 | D48: AER | E48: Per cent | F48: Nominal | J48: 0.02228426973
A49: Ok | C49: 2023 | D49: AER | E49: Per cent | F49: Nominal | J49: 0.03860821465
A50: Ok | C50: 2024 | D50: AER | E50: Per cent | F50: Nominal | J50: 0.06243837771
A51: Ok | C51: 2025 | D51: AER | E51: Per cent | F51: Nominal | J51: 0.05833878985
A52: Ok | C52: 2026 | D52: Placeholder | E52: Per cent | F52: Nominal | J52: 0.0352 | K52: <- Placeholder value to be updated based on actual averaging period
A53: Ok | C53: 2027 | D53: Placeholder | E53: Per cent | F53: Nominal | J53: =+J52 -> 0.0352
A54: Ok | C54: 2028 | D54: Placeholder | E54: Per cent | F54: Nominal | J54: =+J53 -> 0.0352
A55: Ok | C55: 2029 | D55: Placeholder | E55: Per cent | F55: Nominal | J55: =+J54 -> 0.0352
A56: Ok | C56: 2030 | D56: Placeholder | E56: Per cent | F56: Nominal | J56: =+J55 -> 0.0352
C58: Weights used in return on debt transition
C59: New observations | D59: AER | E59: Per cent | F59: Nominal | J59: 0.1 | K59: <- This is the weight applied to each new observation
C60: Initial observation | D60: AER | E60: Per cent | F60: Nominal | J60: 1
B62: Input | Return on equity
C64: Parameters | D64: Source | E64: Unit | F64: Basis | J64: Parameter
A66: =IF(ISERROR(J66),"Check","Ok") -> Ok | C66: Market risk premium | D66: AER | E66: Per cent | F66: n/a | J66: 0.062
A67: =IF(ISERROR(J67),"Check","Ok") -> Ok | C67: Equity beta | D67: AER | E67: Per cent | F67: n/a | J67: 0.6
B69: Input | Other parameters
C71: Rate of return | D71: Source | E71: Unit | F71: Basis | J71: Parameter
A73: =IF(ISERROR(J73),"Check","Ok") -> Ok | C73: Leverage ratio | D73: AER | E73: Per cent | F73: n/a | J73: 0.6
A74: =IF(ISERROR(J74),"Check","Ok") -> Ok | C74: Gamma | D74: AER | E74: Per cent | F74: n/a | J74: 0.57
A75: =IF(ISERROR(J75),"Check","Ok") -> Ok | C75: Tax rate | D75: ATO | E75: Per cent | F75: n/a | J75: 0.3
C77: Debt and equity raising costs
A79: =IF(ISERROR(J79),"Check","Ok") -> Ok | C79: Dividend / imputation payout ratio | D79: AER | E79: Per cent | F79: n/a | J79: 0.878670689
A80: =IF(ISERROR(J80),"Check","Ok") -> Ok | C80: Benchmark SEO raising cost | D80: AER | E80: Per cent | F80: n/a | J80: 0.03
A81: =IF(ISERROR(J81),"Check","Ok") -> Ok | C81: Benchmark DRP cost | D81: AER | E81: Per cent | F81: n/a | J81: 0.01
A82: =IF(ISERROR(J82),"Check","Ok") -> Ok | C82: Benchmark DRP takeup | D82: AER | E82: Per cent | F82: n/a | J82: 0.3
A83: =IF(ISERROR(J83),"Check","Ok") -> Ok | C83: Debt raising costs | D83: CEG | E83: Per cent | F83: n/a | J83: 0.000855 | K83: <- Updated from CEG report
B85: End

Sheet Calc|Placeholder RfR
C1: =Index!$C$1 -> GAAR 2020-25 JGN - Rate of Return Model | F1: Back to Index | L1: Key: | M1: Input (hard code) | N1: External Link | O1: Internal Link | P1: Drop down Selection | Q1: Calculation | R1: Unique calculation | S1: Empty cell | V1: Section Check: | W1: =IF(COUNTA($A$8:$A$38)=COUNTIF($A$8:$A$38,"OK"),"OK","Check") -> OK | Y1: Overall Check: | Z1: ='Check|List'!$V$1 -> OK
C2: =RIGHT(CELL("filename",C1),LEN(CELL("filename",C1))-FIND("]",CELL("filename",C1))) -> Calc|Placeholder RfR
L3: Prior | R3: Current Regulatory Period | W3: Next Regulatory Period
D4: Source | E4: Unit | F4: Basis | L4: =+M4-1 -> 2015 | M4: =+N4-1 -> 2016 | N4: =+O4-1 -> 2017 | O4: =+P4-1 -> 2018 | P4: =+Q4-1 -> 2019 | Q4: =+'Input|Rate of return'!$M$4 -> 2020 | R4: =Q4+1 -> 2021 | S4: =R4+1 -> 2022 | T4: 2023 | U4: 2024 | V4: 2025 | W4: 2026 | X4: 2027 | Y4: 2028 | Z4: 2029 | AA4: 2030
B6: Copyright Jemena Limited. All rights reserved. Jemena is not liable for any loss caused by reliance on this document.
B8: Calc | Risk-free rate (this section presents the mechanics of how the risk-free rate will be determined)
C9: The values presented below are placeholders that will be updated based on our actual averaging period
H10: PlaceholderBond1 (RBA F16) | K10: PlaceholderBond2 (RBA F16) | P10: Interpolation
C11: Yields on government bonds | D11: =+D$4 -> Source | E11: =+E$4 -> Unit | F11: =+F$4 -> Basis | H11: Date | I11: Yield | J11: Weight | K11: Date | L11: Yield | M11: Weight | O11: Date | P11: Yield | Q11: Annualised
C13: 2024-02-08 | D13: Placeholder | E13: =+Percent -> Per cent | F13: =+Nominal -> Nominal | H13: 2033-11-21 | I13: 0.03155113138 | J13: =+_xlfn.LET( _xlpm.futureday,O13, _xlpm.maturitydate_1,H13, _xlpm.maturitydate_2,K13, IF(_xlpm.futureday>=_xlpm.maturitydate_2,0,1-(_xlpm.futureday-_xlpm.maturitydate_1)/(_xlpm.maturitydate_2-_xlpm.maturitydate_1))) -> 0.5635359116 | K13: 2034-05-21 | L13: 0.03155113138 | M13: =1-J13 -> 0.4364640884 | O13: =+DATE(YEAR(C13)+10,MONTH(C13),DAY(C13)) -> 2034-02-08 | P13: =+I13*J13+L13*M13 -> 0.03155113138 | Q13: =+(1+P13/2)^2-1 -> 0.03179999985
C14: 2024-02-09 | D14: Placeholder | E14: Per cent | F14: Nominal | H14: 2033-11-21 | I14: 0.03155113138 | J14: 0.5580110497 | K14: 2034-05-21 | L14: 0.03155113138 | M14: 0.4419889503 | O14: 2034-02-09 | P14: 0.03155113138 | Q14: 0.03179999985
C15: 2024-02-12 | D15: Placeholder | E15: Per cent | F15: Nominal | H15: 2033-11-21 | I15: 0.03155113138 | J15: 0.5414364641 | K15: 2034-05-21 | L15: 0.03155113138 | M15: 0.4585635359 | O15: 2034-02-12 | P15: 0.03155113138 | Q15: 0.03179999985
C16: 2024-02-13 | D16: Placeholder | E16: Per cent | F16: Nominal | H16: 2033-11-21 | I16: 0.03155113138 | J16: 0.5359116022 | K16: 2034-05-21 | L16: 0.03155113138 | M16: 0.4640883978 | O16: 2034-02-13 | P16: 0.03155113138 | Q16: 0.03179999985
C17: 2024-02-14 | D17: Placeholder | E17: Per cent | F17: Nominal | H17: 2033-11-21 | I17: 0.03155113138 | J17: 0.5303867403 | K17: 2034-05-21 | L17: 0.03155113138 | M17: 0.4696132597 | O17: 2034-02-14 | P17: 0.03155113138 | Q17: 0.03179999985
C18: 2024-02-15 | D18: Placeholder | E18: Per cent | F18: Nominal | H18: 2033-11-21 | I18: 0.03155113138 | J18: 0.5248618785 | K18: 2034-05-21 | L18: 0.03155113138 | M18: 0.4751381215 | O18: 2034-02-15 | P18: 0.03155113138 | Q18: 0.03179999985
C19: 2024-02-16 | D19: Placeholder | E19: Per cent | F19: Nominal | H19: 2033-11-21 | I19: 0.03155113138 | J19: 0.5193370166 | K19: 2034-05-21 | L19: 0.03155113138 | M19: 0.4806629834 | O19: 2034-02-16 | P19: 0.03155113138 | Q19: 0.03179999985
C20: 2024-02-19 | D20: Placeholder | E20: Per cent | F20: Nominal | H20: 2033-11-21 | I20: 0.03155113138 | J20: 0.5027624309 | K20: 2034-05-21 | L20: 0.03155113138 | M20: 0.4972375691 | O20: 2034-02-19 | P20: 0.03155113138 | Q20: 0.03179999985
C21: 2024-02-20 | D21: Placeholder | E21: Per cent | F21: Nominal | H21: 2033-11-21 | I21: 0.03155113138 | J21: 0.4972375691 | K21: 2034-05-21 | L21: 0.03155113138 | M21: 0.5027624309 | O21: 2034-02-20 | P21: 0.03155113138 | Q21: 0.03179999985
C22: 2024-02-21 | D22: Placeholder | E22: Per cent | F22: Nominal | H22: 2033-11-21 | I22: 0.03155113138 | J22: 0.4917127072 | K22: 2034-05-21 | L22: 0.03155113138 | M22: 0.5082872928 | O22: 2034-02-21 | P22: 0.03155113138 | Q22: 0.03179999985
C23: 2024-02-22 | D23: Placeholder | E23: Per cent | F23: Nominal | H23: 2033-11-21 | I23: 0.03155113138 | J23: 0.4861878453 | K23: 2034-05-21 | L23: 0.03155113138 | M23: 0.5138121547 | O23: 2034-02-22 | P23: 0.03155113138 | Q23: 0.03179999985
C24: 2024-02-23 | D24: Placeholder | E24: Per cent | F24: Nominal | H24: 2033-11-21 | I24: 0.03155113138 | J24: 0.4806629834 | K24: 2034-05-21 | L24: 0.03155113138 | M24: 0.5193370166 | O24: 2034-02-23 | P24: 0.03155113138 | Q24: 0.03179999985
C25: 2024-02-26 | D25: Placeholder | E25: Per cent | F25: Nominal | H25: 2033-11-21 | I25: 0.03155113138 | J25: 0.4640883978 | K25: 2034-05-21 | L25: 0.03155113138 | M25: 0.5359116022 | O25: 2034-02-26 | P25: 0.03155113138 | Q25: 0.03179999985
C26: 2024-02-27 | D26: Placeholder | E26: Per cent | F26: Nominal | H26: 2033-11-21 | I26: 0.03155113138 | J26: 0.4585635359 | K26: 2034-05-21 | L26: 0.03155113138 | M26: 0.5414364641 | O26: 2034-02-27 | P26: 0.03155113138 | Q26: 0.03179999985
C27: 2024-02-28 | D27: Placeholder | E27: Per cent | F27: Nominal | H27: 2033-11-21 | I27: 0.03155113138 | J27: 0.453038674 | K27: 2034-05-21 | L27: 0.03155113138 | M27: 0.546961326 | O27: 2034-02-28 | P27: 0.03155113138 | Q27: 0.03179999985
C28: 2024-02-29 | D28: Placeholder | E28: Per cent | F28: Nominal | H28: 2033-11-21 | I28: 0.03155113138 | J28: 0.4475138122 | K28: 2034-05-21 | L28: 0.03155113138 | M28: 0.5524861878 | O28: 2034-03-01 | P28: 0.03155113138 | Q28: 0.03179999985
C29: 2024-03-01 | D29: Placeholder | E29: Per cent | F29: Nominal | H29: 2033-11-21 | I29: 0.03155113138 | J29: 0.4475138122 | K29: 2034-05-21 | L29: 0.03155113138 | M29: 0.5524861878 | O29: 2034-03-01 | P29: 0.03155113138 | Q29: 0.03179999985
C30: 2024-03-04 | D30: Placeholder | E30: Per cent | F30: Nominal | H30: 2033-11-21 | I30: 0.03155113138 | J30: 0.4309392265 | K30: 2034-05-21 | L30: 0.03155113138 | M30: 0.5690607735 | O30: 2034-03-04 | P30: 0.03155113138 | Q30: 0.03179999985
C31: 2024-03-05 | D31: Placeholder | E31: Per cent | F31: Nominal | H31: 2033-11-21 | I31: 0.03155113138 | J31: 0.4254143646 | K31: 2034-05-21 | L31: 0.03155113138 | M31: 0.5745856354 | O31: 2034-03-05 | P31: 0.03155113138 | Q31: 0.03179999985
C32: 2024-03-06 | D32: Placeholder | E32: Per cent | F32: Nominal | H32: 2033-11-21 | I32: 0.03155113138 | J32: =+_xlfn.LET( _xlpm.futureday,O32, _xlpm.maturitydate_1,H32, _xlpm.maturitydate_2,K32, IF(_xlpm.futureday>=_xlpm.maturitydate_2,0,1-(_xlpm.futureday-_xlpm.maturitydate_1)/(_xlpm.maturitydate_2-_xlpm.maturitydate_1))) -> 0.4198895028 | K32: 2034-05-21 | L32: 0.03155113138 | M32: 0.5801104972 | O32: 2034-03-06 | P32: 0.03155113138 | Q32: 0.03179999985
C34: Item | D34: =+D11 -> Source | E34: =+E11 -> Unit | F34: =+F11 -> Basis | Q34: Rf Estimate
A36: =+IF(ISERROR(Q36),"Check","Ok") -> Ok | C36: Risk-free rate placeholder | D36: Calculated | E36: Per cent | F36: Nominal | Q36: =+AVERAGE(Q13:Q32) -> 0.03179999985
B38: End

Sheet Calc|Rate of return
C1: =Index!$C$1 -> GAAR 2020-25 JGN - Rate of Return Model | F1: Back to Index | L1: Key: | M1: Input (hard code) | N1: External Link | O1: Internal Link | P1: Drop down Selection | Q1: Calculation | R1: Unique calculation | S1: Empty cell | V1: Section Check: | W1: =IF(COUNTA($A$8:$A$40)=COUNTIF($A$8:$A$40,"OK"),"OK","Check") -> OK | Y1: Overall Check: | Z1: ='Check|List'!$V$1 -> OK
C2: =RIGHT(CELL("filename",C1),LEN(CELL("filename",C1))-FIND("]",CELL("filename",C1))) -> Calc|Rate of return
L3: Prior | R3: Current Regulatory Period | W3: Next Regulatory Period
D4: Source | E4: Unit | F4: Basis | L4: =+M4-1 -> 2015 | M4: =+N4-1 -> 2016 | N4: =+O4-1 -> 2017 | O4: =+P4-1 -> 2018 | P4: =+Q4-1 -> 2019 | Q4: =+'Input|Rate of return'!$M$4 -> 2020 | R4: =Q4+1 -> 2021 | S4: =R4+1 -> 2022 | T4: 2023 | U4: 2024 | V4: 2025 | W4: 2026 | X4: 2027 | Y4: 2028 | Z4: 2029 | AA4: 2030
B6: Copyright Jemena Limited. All rights reserved. Jemena is not liable for any loss caused by reliance on this document.
B8: Calc | Forecast Inflation
C10: Inflation | D10: =+D$4 -> Source | E10: =+E$4 -> Unit | F10: =+F$4 -> Basis | L10: =+"FY"&RIGHT(L$4,2) -> FY15 | M10: FY16 | N10: FY17 | O10: FY18 | P10: FY19 | Q10: FY20 | R10: FY21 | S10: FY22 | T10: FY23 | U10: FY24 | V10: FY25 | W10: FY26 | X10: FY27 | Y10: FY28 | Z10: FY29 | AA10: FY30
C12: Expected inflation - Glide Path | D12: Input|Rate of Return | E12: Per cent | F12: n/a | W12: =PRODUCT(1+'Input|Rate of return'!S26:W26)^(1/COUNT('Input|Rate of return'!S26:W26))-1 -> 0.02789756045 | X12: =+W12 -> 0.02789756045 | Y12: =+X12 -> 0.02789756045 | Z12: =+Y12 -> 0.02789756045 | AA12: =+Z12 -> 0.02789756045
C13: Inflation (Capex) | D13: Input|Rate of Return | E13: Per cent | F13: n/a | L13: =+'Input|Rate of return'!H19 -> 0.01717557252 | M13: =+'Input|Rate of return'!I19 -> 0.01688555347 | N13: =+'Input|Rate of return'!J19 -> 0.0147601476 | O13: =+'Input|Rate of return'!K19 -> 0.01909090909 | P13: =+'Input|Rate of return'!L19 -> 0.0178412132 | Q13: =+'Input|Rate of return'!M19 -> 0.01840490798 | R13: =+'Input|Rate of return'!N19 -> 0.008605851979 | S13: =+'Input|Rate of return'!O19 -> 0.03498293515 | T13: =+'Input|Rate of return'!P19 -> 0.07831821929 | U13: 0.04051987768 | V13: 0.032 | W13: =+W12 -> 0.02789756045 | X13: =+X12 -> 0.02789756045 | Y13: =+Y12 -> 0.02789756045 | Z13: =+Z12 -> 0.02789756045 | AA13: =+AA12 -> 0.02789756045
C14: Inflation (Opex) | D14: Input|Rate of Return | E14: Per cent | F14: n/a | M14: =+SUM('Input|Rate of return'!I12:I13) -> 0.01023255814 | N14: =+SUM('Input|Rate of return'!J12:J13) -> 0.01933701657 | O14: =+SUM('Input|Rate of return'!K12:K13) -> 0.02077687444 | P14: =+SUM('Input|Rate of return'!L12:L13) -> 0.01592920354 | Q14: =+SUM('Input|Rate of return'!M12:M13) -> -0.003484320557 | R14: =+SUM('Input|Rate of return'!N12:N13) -> 0.03846153846 | S14: =+SUM('Input|Rate of return'!O12:O13) -> 0.06144781145 | T14: =+SUM('Input|Rate of return'!P12:P13) -> 0.06026962728 | U14: 0.033 | V14: 0.031 | W14: =+W$13 -> 0.02789756045 | X14: =+X$13 -> 0.02789756045 | Y14: =+Y$13 -> 0.02789756045 | Z14: =+Z$13 -> 0.02789756045 | AA14: =+AA$13 -> 0.02789756045
B16: Calc | Return on debt
C18: Estimates | D18: Source | E18: Unit | F18: Basis | M18: =M$4 -> 2016 | N18: 2017 | O18: 2018 | P18: 2019 | Q18: 2020 | R18: 2021 | S18: 2022 | T18: 2023 | U18: 2024 | V18: 2025 | W18: 2026 | X18: 2027 | Y18: 2028 | Z18: 2029 | AA18: 2030
C20: Observations
C21: Annual observations | D21: Input|Rate of return | E21: Per cent | F21: Nominal | M21: =+TRANSPOSE('Input|Rate of return'!$J$42:$J$56) -> 0.04273562483 | N21: 0.05422642326 | O21: 0.0506870619 | P21: 0.04573396235 | Q21: 0.04520098528 | R21: 0.02561120428 | S21: 0.02228426973 | T21: 0.03860821465 | U21: 0.06243837771 | V21: 0.05833878985 | W21: 0.0352 | X21: 0.0352 | Y21: 0.0352 | Z21: 0.0352 | AA21: 0.0352
C23: Weights
C24: New observation | D24: Input|Rate of return | E24: Per cent | F24: n/a | M24: =IF(ISNUMBER(M$21),Weight_New,NA()) -> 0.1 | N24: 0.1 | O24: 0.1 | P24: 0.1 | Q24: 0.1 | R24: 0.1 | S24: 0.1 | T24: 0.1 | U24: 0.1 | V24: 0.1 | W24: 0.1 | X24: 0.1 | Y24: 0.1 | Z24: 0.1 | AA24: 0.1
C25: =M18&" observation" -> 2016 observation | D25: Input|Rate of return | E25: Per cent | F25: n/a | M25: =IF(ISNUMBER(M$21),MAX(Weight_Initial-SUM($M24:M24),0),NA()) -> 0.9 | N25: =IF(ISNUMBER(N$21),MAX(Weight_Initial-SUM($M24:N24),0),NA()) -> 0.8 | O25: =IF(ISNUMBER(O$21),MAX(Weight_Initial-SUM($M24:O24),0),NA()) -> 0.7 | P25: =IF(ISNUMBER(P$21),MAX(Weight_Initial-SUM($M24:P24),0),NA()) -> 0.6 | Q25: =IF(ISNUMBER(Q$21),MAX(Weight_Initial-SUM($M24:Q24),0),NA()) -> 0.5 | R25: =IF(ISNUMBER(R$21),MAX(Weight_Initial-SUM($M24:R24),0),NA()) -> 0.4 | S25: =IF(ISNUMBER(S$21),MAX(Weight_Initial-SUM($M24:S24),0),NA()) -> 0.3 | T25: =IF(ISNUMBER(T$21),MAX(Weight_Initial-SUM($M24:T24),0),NA()) -> 0.2 | U25: =IF(ISNUMBER(U$21),MAX(Weight_Initial-SUM($M24:U24),0),NA()) -> 0.1 | V25: =IF(ISNUMBER(V$21),MAX(Weight_Initial-SUM($M24:V24),0),NA()) -> 1.110223025e-16 | W25: =IF(ISNUMBER(W$21),MAX(Weight_Initial-SUM($M24:W24),0),NA()) -> 0 | X25: =IF(ISNUMBER(X$21),MAX(Weight_Initial-SUM($M24:X24),0),NA()) -> 0 | Y25: =IF(ISNUMBER(Y$21),MAX(Weight_Initial-SUM($M24:Y24),0),NA()) -> 0 | Z25: =IF(ISNUMBER(Z$21),MAX(Weight_Initial-SUM($M24:Z24),0),NA()) -> 0 | AA25: =IF(ISNUMBER(AA$21),MAX(Weight_Initial-SUM($M24:AA24),0),NA()) -> 0
A28: =IF(ISERROR(AA28),"Check","Ok") -> Ok | C28: Return on debt (pre-tax) | D28: Calculated | E28: Per cent | F28: Nominal | M28: =IFERROR($M21*M25+SUMPRODUCT($M21:M21,$M24:M24),G28) -> 0.04273562483 | N28: =IFERROR($M21*N25+SUMPRODUCT($M21:N21,$M24:N24),M28) -> 0.04388470467 | O28: =IFERROR($M21*O25+SUMPRODUCT($M21:O21,$M24:O24),N28) -> 0.04467984838 | P28: =IFERROR($M21*P25+SUMPRODUCT($M21:P21,$M24:P24),O28) -> 0.04497968213 | Q28: =IFERROR($M21*Q25+SUMPRODUCT($M21:Q21,$M24:Q24),P28) -> 0.04522621817 | R28: =IFERROR($M21*R25+SUMPRODUCT($M21:R21,$M24:R24),Q28) -> 0.04351377612 | S28: =IFERROR($M21*S25+SUMPRODUCT($M21:S21,$M24:S24),R28) -> 0.04146864061 | T28: =IFERROR($M21*T25+SUMPRODUCT($M21:T21,$M24:T24),S28) -> 0.04105589959 | U28: =IFERROR($M21*U25+SUMPRODUCT($M21:U21,$M24:U24),T28) -> 0.04302617488 | V28: =IFERROR($M21*V25+SUMPRODUCT($M21:V21,$M24:V24),U28) -> 0.04458649138 | W28: =IFERROR(SUMPRODUCT(N21:W21,N24:W24),V28) -> 0.0438329289 | X28: =IFERROR(SUMPRODUCT(O21:X21,O24:X24),W28) -> 0.04193028657 | Y28: =IFERROR(SUMPRODUCT(P21:Y21,P24:Y24),X28) -> 0.04038158038 | Z28: =IFERROR(SUMPRODUCT(Q21:Z21,Q24:Z24),Y28) -> 0.03932818415 | AA28: =IFERROR(SUMPRODUCT(R21:AA21,R24:AA24),Z28) -> 0.03832808562 | AB28: <- Return on debt estimated using a 10-year transition from 2016
B30: Calc | Return on equity
C32: Estimates | D32: Source | E32: Unit | F32: Basis | O32: Returns
C34: Risk-free rate | D34: Input|Rate of return | E34: Per cent | F34: Nominal | O34: ='Input|Rate of return'!J35 -> 0.0318
C35: Market risk premium | D35: Input|Rate of return | E35: Per cent | F35: Nominal | O35: =+MRP -> 0.062
C36: Equity beta | D36: Input|Rate of return | E36: Per cent | F36: Nominal | O36: =+Equity_Beta -> 0.6
A38: =IF(ISERROR(O38),"Check","Ok") -> Ok | C38: Return on equity (post-tax) estimate | D38: Calculated | E38: Per cent | F38: Nominal | O38: =O34+O35*O36 -> 0.069
B40: End

Sheet Output|Rate of return
C1: =Index!$C$1 -> GAAR 2020-25 JGN - Rate of Return Model | F1: Back to Index | J1: Key: | K1: Input (hard code) | L1: External Link | M1: Internal Link | N1: Drop down Selection | O1: Calculation | P1: Unique calculation | Q1: Empty cell | S1: Section Check: | T1: =IF(COUNTA($A$8:$A$37)=COUNTIF($A$8:$A$37,"OK"),"OK","Check") -> OK | V1: Overall Check: | W1: ='Check|List'!$V$1 -> OK
C2: =RIGHT(CELL("filename",C1),LEN(CELL("filename",C1))-FIND("]",CELL("filename",C1))) -> Output|Rate of return
J3: Prior | P3: Current Regulatory Period | U3: Next Regulatory Period
D4: Source | E4: Unit | F4: Basis | J4: =+K4-1 -> 2015 | K4: =+L4-1 -> 2016 | L4: =+M4-1 -> 2017 | M4: =+N4-1 -> 2018 | N4: =+O4-1 -> 2019 | O4: =+'Input|Rate of return'!$M$4 -> 2020 | P4: =O4+1 -> 2021 | Q4: 2022 | R4: 2023 | S4: 2024 | T4: 2025 | U4: 2026 | V4: 2027 | W4: 2028 | X4: 2029 | Y4: 2030
B6: Copyright Jemena Limited. All rights reserved. Jemena is not liable for any loss caused by reliance on this document.
B8: Outputs | PTRM inputs
C10: Rate of return | D10: Source | E10: Unit | F10: Basis | J10: ="RY"&RIGHT(J$4,2) -> RY15 | K10: RY16 | L10: RY17 | M10: RY18 | N10: RY19 | O10: RY20 | P10: RY21 | Q10: RY22 | R10: RY23 | S10: RY24 | T10: RY25 | U10: ="RY"&RIGHT(U$4,2) -> RY26 | V10: ="RY"&RIGHT(V$4,2) -> RY27 | W10: ="RY"&RIGHT(W$4,2) -> RY28 | X10: ="RY"&RIGHT(X$4,2) -> RY29 | Y10: ="RY"&RIGHT(Y$4,2) -> RY30
A12: =IF(ISERROR(U12),"Check","Ok") -> Ok | C12: Return on equity (post-tax) | D12: Calc|Rate of return | E12: Per cent | F12: Nominal | U12: =Cost_of_Equity -> 0.069 | V12: =Cost_of_Equity -> 0.069 | W12: =Cost_of_Equity -> 0.069 | X12: =Cost_of_Equity -> 0.069 | Y12: =Cost_of_Equity -> 0.069
A13: =IF(ISERROR(U13),"Check","Ok") -> Ok | C13: Gamma | D13: Input|Rate of return | E13: Per cent | F13: Nominal | U13: =Gamma -> 0.57 | V13: =Gamma -> 0.57 | W13: =Gamma -> 0.57 | X13: =Gamma -> 0.57 | Y13: =Gamma -> 0.57
A14: =IF(ISERROR(U14),"Check","Ok") -> Ok | C14: Leverage | D14: Input|Rate of return | E14: Per cent | F14: Nominal | U14: =Leverage -> 0.6 | V14: =Leverage -> 0.6 | W14: =Leverage -> 0.6 | X14: =Leverage -> 0.6 | Y14: =Leverage -> 0.6
A15: =IF(ISERROR(U15),"Check","Ok") -> Ok | C15: Tax rate | D15: Input|Rate of return | E15: Per cent | F15: Nominal | U15: =Tax -> 0.3 | V15: =Tax -> 0.3 | W15: =Tax -> 0.3 | X15: =Tax -> 0.3 | Y15: =Tax -> 0.3
A16: =IF(ISERROR(U16),"Check","Ok") -> Ok | C16: Return on debt (pre-tax) | D16: Calc|Rate of return | E16: Per cent | F16: Nominal | U16: =+_xlfn.XLOOKUP(RIGHT(U$10,2),RIGHT('Calc|Rate of return'!$M$18:$AA$18,2),'Calc|Rate of return'!$M$28:$AA$28) -> 0.0438329289 | V16: =+_xlfn.XLOOKUP(RIGHT(V$10,2),RIGHT('Calc|Rate of return'!$M$18:$AA$18,2),'Calc|Rate of return'!$M$28:$AA$28) -> 0.04193028657 | W16: =+_xlfn.XLOOKUP(RIGHT(W$10,2),RIGHT('Calc|Rate of return'!$M$18:$AA$18,2),'Calc|Rate of return'!$M$28:$AA$28) -> 0.04038158038 | X16: =+_xlfn.XLOOKUP(RIGHT(X$10,2),RIGHT('Calc|Rate of return'!$M$18:$AA$18,2),'Calc|Rate of return'!$M$28:$AA$28) -> 0.03932818415 | Y16: =+_xlfn.XLOOKUP(RIGHT(Y$10,2),RIGHT('Calc|Rate of return'!$M$18:$AA$18,2),'Calc|Rate of return'!$M$28:$AA$28) -> 0.03832808562
C18: Nominal vanilla WACC | U18: =U12*(1-U14)+U16*U14 -> 0.05389975734 | V18: =V12*(1-V14)+V16*V14 -> 0.05275817194 | W18: =W12*(1-W14)+W16*W14 -> 0.05182894823 | X18: =X12*(1-X14)+X16*X14 -> 0.05119691049 | Y18: =Y12*(1-Y14)+Y16*Y14 -> 0.05059685137
C20: Debt and equity raising costs | D20: Source | E20: Unit | F20: Basis | U20: Estimates
A22: =IF(ISERROR(U22),"Check","Ok") -> Ok | C22: Dividend / imputation payout ratio | D22: Input|Rate of return | E22: Per cent | F22: n/a | U22: ='Input|Rate of return'!J79 -> 0.878670689
A23: =IF(ISERROR(U23),"Check","Ok") -> Ok | C23: Benchmark SEO raising cost | D23: Input|Rate of return | E23: Per cent | F23: n/a | U23: ='Input|Rate of return'!J80 -> 0.03
A24: =IF(ISERROR(U24),"Check","Ok") -> Ok | C24: Benchmark DRP cost | D24: Input|Rate of return | E24: Per cent | F24: n/a | U24: ='Input|Rate of return'!J81 -> 0.01
A25: =IF(ISERROR(U25),"Check","Ok") -> Ok | C25: Benchmark DRP takeup | D25: Input|Rate of return | E25: Per cent | F25: n/a | U25: ='Input|Rate of return'!J82 -> 0.3
A26: =IF(ISERROR(U26),"Check","Ok") -> Ok | C26: Debt raising costs | D26: Input|Rate of return | E26: Per cent | F26: n/a | U26: ='Input|Rate of return'!J83 -> 0.000855
B28: Outputs | Inflation
J30: Australian Bureau of Statistics (ABS) Data | S30: RBA Forecast
C31: Inflation | D31: Source | E31: Unit | F31: Basis | J31: ="RY"&RIGHT(J$4,2) -> RY15 | K31: RY16 | L31: RY17 | M31: RY18 | N31: RY19 | O31: RY20 | P31: RY21 | Q31: RY22 | R31: RY23 | S31: RY24 | T31: RY25 | U31: RY26 | V31: RY27 | W31: RY28 | X31: RY29 | Y31: RY30
A33: =+IF(ISNUMBER(SUM(J33:Y33)),"Ok","Check") -> Ok | C33: Inflation Rate (Opex) | D33: Calc|Rate of return | E33: Per cent | F33: n/a | K33: =+'Calc|Rate of return'!M14 -> 0.01023255814 | L33: =+'Calc|Rate of return'!N14 -> 0.01933701657 | M33: =+'Calc|Rate of return'!O14 -> 0.02077687444 | N33: =+'Calc|Rate of return'!P14 -> 0.01592920354 | O33: =+'Calc|Rate of return'!Q14 -> -0.003484320557 | P33: =+'Calc|Rate of return'!R14 -> 0.03846153846 | Q33: =+'Calc|Rate of return'!S14 -> 0.06144781145 | R33: =+'Calc|Rate of return'!T14 -> 0.06026962728 | S33: =+'Calc|Rate of return'!U14 -> 0.033 | T33: =+'Calc|Rate of return'!V14 -> 0.031
A34: =+IF(ISNUMBER(SUM(J34:Y34)),"Ok","Check") -> Ok | C34: Inflation Rate (Capex) | D34: Calc|Rate of return | E34: Per cent | F34: n/a | J34: =+'Calc|Rate of return'!L13 -> 0.01717557252 | K34: =+'Calc|Rate of return'!M13 -> 0.01688555347 | L34: =+'Calc|Rate of return'!N13 -> 0.0147601476 | M34: =+'Calc|Rate of return'!O13 -> 0.01909090909 | N34: =+'Calc|Rate of return'!P13 -> 0.0178412132 | O34: =+'Calc|Rate of return'!Q13 -> 0.01840490798 | P34: =+'Calc|Rate of return'!R13 -> 0.008605851979 | Q34: =+'Calc|Rate of return'!S13 -> 0.03498293515 | R34: =+'Calc|Rate of return'!T13 -> 0.07831821929 | S34: =+'Calc|Rate of return'!U13 -> 0.04051987768 | T34: =+'Calc|Rate of return'!V13 -> 0.032
A35: =+IF(ISNUMBER(SUM(J35:Y35)),"Ok","Check") -> Ok | C35: Inflation Rate (PTRM) | D35: Calc|Rate of return | E35: Per cent | F35: n/a | U35: =+'Calc|Rate of return'!W$13 -> 0.02789756045 | V35: =+'Calc|Rate of return'!X$13 -> 0.02789756045 | W35: =+'Calc|Rate of return'!Y$13 -> 0.02789756045 | X35: =+'Calc|Rate of return'!Z$13 -> 0.02789756045 | Y35: =+'Calc|Rate of return'!AA$13 -> 0.02789756045
B37: End

Sheet Lookup|Tables
C1: =Index!$C$1 -> GAAR 2020-25 JGN - Rate of Return Model | J1: Back to Index | L1: Key: | M1: Input | N1: External Link | O1: Internal Link | U1: Overall Check: | V1: =+'Check|List'!V1 -> OK
C2: =RIGHT(CELL("filename",C1),LEN(CELL("filename",C1))-FIND("]",CELL("filename",C1))) -> Lookup|Tables
B5: Copyright Jemena Limited. All rights reserved. Jemena is not liable for any loss caused by reliance on this document.
B7: Lookup table
C9: Financial Unit Denomination | D9: Source | G9: Ref
C10: Dollars | D10: JGN | G10: $dollars
C11: Thousands | D11: JGN | G11: $000
C12: Millions | D12: JGN | G12: $millions
C14: Non-financial Unit Denomination
C15: Percent | D15: JGN | G15: Per cent
C16: Unit | D16: JGN | G16: unit
C17: Number | D17: JGN | G17: number
C18: Factor | D18: JGN | G18: factor
C19: Mains | D19: JGN | G19: mains
C20: Kilometres | D20: JGN | G20: kms
C21: Metres | D21: JGN | G21: metres
C23: Periodicity
C24: Actuals | D24: JGN | G24: Actual
C25: Forecast | D25: JGN | G25: Fcast
C26: Date | D26: JGN | G26: date
C27: Month | D27: JGN | G27: month
C28: Quarter | D28: JGN | G28: quarter
C29: Year | D29: JGN | G29: year
C30: Option | D30: JGN | G30: option
C31: Yes/No | D31: JGN | G31: yes/no
C32: Actuals/Forecast | D32: JGN | G32: (A)/(F)
C34: Time Intervals
C35: Number of months in a year | D35: JGN | G35: 12
C36: Number of days in a year | D36: JGN | G36: 365
C37: Number of weeks in a year | D37: JGN | G37: 52
C38: Number of periods (years) in reg period | D38: JGN | G38: 5
C40: Cash flow timing
C41: Start-year | D41: JGN | G41: -0.5
C42: Mid-year | D42: JGN | G42: 0
C43: End-year | D43: JGN | G43: 0.5
C44: Adjustment to mid-year | D44: JGN | G44: 0.5
C45: Adjustment to end-year | D45: JGN | G45: 1
C47: Timing
C48: Mid-year | D48: JGN | G48: Mid-year
C49: End-year | D49: JGN | G49: End-year
C51: Yes/No | G51: [Select]
C52: Yes | D52: JGN | G52: Yes
C53: No | D53: JGN | G53: No
C55: Dollar base
C56: 2015 | D56: JGN | G56: 2015
C57: 2016 | D57: JGN | G57: 2016
C58: 2017 | D58: JGN | G58: 2017
C59: 2018 | D59: JGN | G59: 2018
C60: 2019 | D60: JGN | G60: 2019
C61: 2020 | D61: JGN | G61: 2020
C62: 2021 | D62: JGN | G62: 2021
C63: 2022 | D63: JGN | G63: 2022
C64: 2023 | D64: JGN | G64: 2023
C65: 2024 | D65: JGN | G65: 2024
C66: 2025 | D66: JGN | G66: 2025
C67: 2026 | D67: JGN | G67: 2026
C68: 2027 | D68: JGN | G68: 2027
C69: 2028 | D69: JGN | G69: 2028
C70: 2029 | D70: JGN | G70: 2029
C71: 2030 | D71: JGN | G71: 2030
C72: Nominal | D72: JGN | G72: Nominal
C73: Real | D73: JGN | G73: Real
C74: Not Applicable | D74: JGN | G74: n/a
C76: Numeric Converters
C77: Thousands | D77: JGN | G77: 1000
C78: Millions | D78: JGN | G78: 1000000
C80: Rounding and Error Handling
C81: Rounding units | D81: JGN | G81: 5
C82: Very Small Number | D82: JGN | G82: 1e-07
B84: End

Sheet Check|List
C1: =Index!$C$1 -> GAAR 2020-25 JGN - Rate of Return Model | J1: Back to Index | L1: Key: | M1: Input | N1: External Link | O1: Internal Link | U1: Overall Check: | V1: =IF(COUNTA($G$10:$G$13)=COUNTIF($G$10:$G$13,"OK"),"OK","Check") -> OK
C2: =RIGHT(CELL("filename",C1),LEN(CELL("filename",C1))-FIND("]",CELL("filename",C1))) -> Check|List
B5: Copyright Jemena Limited. All rights reserved. Jemena is not liable for any loss caused by reliance on this document.
B7: Check List
C9: Sheet | G9: Status
C10: Input | Rate of return | G10: ='Input|Rate of return'!$S$1 -> OK
C11: Calc | Placeholder RfR | G11: =+'Calc|Rate of return'!W1 -> OK
C12: Calc | Rate of return | G12: ='Calc|Rate of return'!W1 -> OK
C13: Output | Rate of return | G13: ='Output|Rate of return'!T1 -> OK
B15: End
